lending/lending_fUSD_20240110
["ID","MTS","AMOUNT","RATE_DAILY","PERIOD"]
[311063789,1704891177411,-500.0,0.00033972,2]
[311063790,1704891177422,-1150.48,0.00033972,2]
[311063791,1704891177432,-500.0,0.00033972,2]
[311063792,1704891177442,-500.0,0.00033972,2]
[311063793,1704891177456,-856.23,0.00033972,2]
[311063794,1704891177467,-500.0,0.00033972,2]
[311063795,1704891177478,-943.83,0.00033972,2]
[311063796,1704891177488,-677.16,0.00033972,2]
[311063797,1704891177499,-1357.7,0.00033972,2]
[311063798,1704891177508,-819.95,0.00033972,2]
[311063799,1704891177518,-944.54,0.00033972,2]
[311063800,1704891177529,-613.7,0.00033972,2]
[311063801,1704891177540,-845.23,0.00033972,2]
[311063802,1704891177550,-1144.78,0.00033972,2]
[311063803,1704891177560,-500.0,0.00033972,2]
[311063804,1704891177569,-572.57,0.00033972,2]
[311063805,1704891177579,-523.04,0.00033972,2]
[311063806,1704891177621,-981.88,0.00033972,2]
[311063807,1704891177630,-500.0,0.00033972,2]
[311063808,1704891177640,-500.0,0.00033972,2]
[311063809,1704891177649,-500.0,0.00033972,2]
[311063810,1704891177660,-1009.3,0.00033972,2]
[311063811,1704891177670,-804.49,0.00033972,2]
[311063812,1704891177679,-500.0,0.00033972,2]
[311063813,1704891177689,-626.97,0.00033972,2]
[311063814,1704891177702,-679.35,0.00033972,2]
[311063815,1704891177711,-688.65,0.00033972,2]
[311063816,1704891177722,-1228.41,0.00033972,2]
[311063817,1704891177731,-835.39,0.00033972,2]
[311063818,1704891177741,-500.0,0.00033972,2]
[311063819,1704891177751,-567.03,0.00033972,2]
[311063820,1704891177760,-664.11,0.00033972,2]
[311063821,1704891177770,-699.18,0.00033972,2]
[311063822,1704891177780,-729.83,0.00033972,2]
[311063823,1704891177790,-500.0,0.00033972,2]
[311063824,1704891177799,-574.64,0.00033972,2]
[311063825,1704891177810,-847.62,0.00033972,2]
[311063826,1704891177819,-287.31175887,0.00033972,2]
[311063827,1704891177830,-1277.67,0.00033972,2]
[311063828,1704891177840,-755.08,0.00033972,2]
[311063829,1704891177850,-1281.13,0.00033972,2]
[311063830,1704891177861,-1050.74,0.00033972,2]
[311063831,1704891177871,-1129.59,0.00033972,2]
[311063832,1704891177880,-1299.52,0.00033972,2]
[311063833,1704891177890,-500.0,0.00033972,2]
[311063834,1704891177899,-667.72,0.00033972,2]
[311063835,1704891177910,-500.0,0.00033972,2]
[311063836,1704891177920,-665.14,0.00033972,2]
[311063837,1704891177930,-1462.15,0.00033972,2]
[311063838,1704891177940,-883.1,0.00033972,2]
[311063839,1704891177953,-736.72,0.00033972,2]
[311063840,1704891177963,-932.0,0.00033972,2]
[311063841,1704891177973,-933.85,0.00033972,2]
[311063842,1704891177982,-715.55,0.00033972,2]
[311063843,1704891177993,-500.0,0.00033972,2]
[311063844,1704891178002,-616.84,0.00033972,2]
[311063845,1704891178012,-1106.31,0.00033972,2]
[311063846,1704891178022,-989.02,0.00033972,2]
[311063847,1704891178031,-500.0,0.00033972,2]
[311063848,1704891178041,-500.0,0.00033972,2]
[311063849,1704891178050,-1108.12,0.00033972,2]
[311063850,1704891178060,-1195.8,0.00033972,2]
[311063851,1704891178070,-1806.82,0.00033972,2]
[311063852,1704891178079,-915.35,0.00033972,2]
[311063853,1704891178090,-1387.71,0.00033972,2]
[311063854,1704891178100,-778.7,0.00033972,2]
[311063855,1704891178109,-1503.57,0.00033972,2]
[311063856,1704891178118,-556.89,0.00033972,2]
[311063857,1704891178127,-1262.12,0.00033972,2]
[311063858,1704891178137,-728.24,0.00033972,2]
[311063859,1704891178147,-749.59,0.00033972,2]
[311063860,1704891178157,-968.99,0.00033972,2]
[311063861,1704891178166,-500.0,0.00033972,2]
[311063862,1704891178176,-1148.53,0.00033972,2]
[311063863,1704891178186,-500.0,0.00033972,2]
[311063864,1704891178196,-1486.97,0.00033972,2]
[311063865,1704891178210,-1273.18,0.00033972,2]
[311063866,1704891178221,-500.0,0.00033972,2]
[311063867,1704891178231,-500.0,0.00033972,2]
[311063868,1704891178241,-1334.19,0.00033972,2]
[311063869,1704891178251,-810.04,0.00033972,2]
[311063870,1704891178261,-945.46,0.00033972,2]
[311063871,1704891178272,-884.9,0.00033972,2]
[311063872,1704891178282,-500.0,0.00033972,2]
[311063873,1704891178292,-566.84,0.00033972,2]
[311063874,1704891178303,-500.0,0.00033972,2]
[311063875,1704891178313,-659.65,0.00033972,2]
[311063876,1704891178322,-1698.48,0.00033972,2]
[311063877,1704891178334,-1658.69,0.00033972,2]
[311063878,1704891178345,-1894.62,0.00033972,2]
[311063879,1704891178356,-530.43,0.00033972,2]
[311063880,1704891178367,-648.28,0.00033972,2]
[311063881,1704891178378,-635.25,0.00033972,2]
[311063882,1704891178388,-716.26,0.00033972,2]
[311063883,1704891178398,-500.0,0.00033972,2]
[311063884,1704891178529,-1075.0,0.00033972,2]
[311063885,1704891178540,-659.2,0.00033972,2]
[311063886,1704891178549,-912.69,0.00033972,2]
[311063887,1704891178560,-994.89,0.00033972,2]
[311063888,1704891178570,-536.25,0.00033972,2]
[311063889,1704891178579,-535.04,0.00033972,2]
[311063890,1704891178589,-500.0,0.00033972,2]
[311063891,1704891178598,-763.92,0.00033972,2]
[311063892,1704891178607,-1507.5,0.00033972,2]
[311063893,1704891178617,-1352.86,0.00033972,2]
[311063894,1704891178628,-763.85,0.00033972,2]
[311063895,1704891178637,-500.0,0.00033972,2]
[311063896,1704891178647,-1058.85,0.00033972,2]
[311063897,1704891178657,-592.06,0.00033972,2]
[311063898,1704891178670,-1144.7,0.00033972,2]
[311063899,1704891178680,-500.0,0.00033972,2]
[311063900,1704891178690,-982.41,0.00033972,2]
[311063901,1704891178700,-500.0,0.00033972,2]
[311063902,1704891178709,-500.0,0.00033972,2]
[311063903,1704891178720,-209.94095367,0.00033972,2]
[311063904,1704891178729,-960.45,0.00033972,2]
[311063905,1704891178739,-1268.39,0.00033972,2]
[311063906,1704891178749,-1187.57,0.00033972,2]
[311063907,1704891178758,-1176.82,0.00033972,2]
[311063908,1704891178768,-500.0,0.00033972,2]
[311063909,1704891178778,-1591.28,0.00033972,2]
[311063910,1704891178787,-982.23,0.00033972,2]
[311063911,1704891178796,-960.81,0.00033972,2]
[311063912,1704891178806,-1435.01,0.00033972,2]
[311063913,1704891178815,-1207.08,0.00033972,2]
[311063914,1704891178825,-771.19,0.00033972,2]
[311063915,1704891178834,-1012.64,0.00033972,2]
[311063916,1704891178844,-1395.58,0.00033972,2]
[311063917,1704891178854,-1128.18,0.00033972,2]
[311063918,1704891178863,-1055.12,0.00033972,2]
[311063919,1704891178873,-524.56,0.00033972,2]
[311063920,1704891178882,-500.0,0.00033972,2]
[311063921,1704891178892,-620.01,0.00033972,2]
[311063922,1704891178901,-1511.92,0.00033972,2]
[311063923,1704891178910,-835.1,0.00033972,2]
[311063924,1704891178920,-1179.08,0.00033972,2]
[311063925,1704891178929,-1387.63,0.00033972,2]
[311063926,1704891178939,-1185.27,0.00033972,2]
[311063927,1704891178950,-904.42,0.00033972,2]
[311063928,1704891178959,-500.0,0.00033972,2]
[311063929,1704891178969,-1196.53,0.00033972,2]
[311063930,1704891178978,-525.95,0.00033972,2]
[311063931,1704891178987,-1787.03,0.00033972,2]
[311063932,1704891178996,-674.1,0.00033972,2]
[311063933,1704891179005,-1077.63,0.00033972,2]
[311063934,1704891179015,-755.38,0.00033972,2]
[311063935,1704891179025,-500.0,0.00033972,2]
[311063936,1704891179035,-581.62,0.00033972,2]
[311063937,1704891179045,-1024.85,0.00033972,2]
[311063938,1704891179055,-1257.2,0.00033972,2]
[311063939,1704891179066,-836.69,0.00033972,2]
[311063940,1704891179078,-525.09,0.00033972,2]
[311063941,1704891179088,-782.38,0.00033972,2]
[311063942,1704891179099,-500.0,0.00033972,2]
[311063943,1704891179110,-1749.35,0.00033972,2]
[311063944,1704891179120,-1000.33,0.00033972,2]
[311063945,1704891179132,-604.42,0.00033972,2]
[311063946,1704891179142,-500.0,0.00033972,2]
[311063947,1704891179152,-765.38,0.00033972,2]
[311063948,1704891179162,-878.75,0.00033972,2]
[311063949,1704891179171,-362.6923119,0.00033972,2]
[311063950,1704891179181,-679.72,0.00033972,2]
[311063951,1704891179191,-1881.36,0.00033972,2]
[311063952,1704891179206,-631.79,0.00033972,2]
[311063953,1704891179221,-500.0,0.00033972,2]
[311063954,1704891179232,-1166.65,0.00033972,2]
[311063955,1704891179242,-500.0,0.00033972,2]
[311063956,1704891179253,-756.6,0.00033972,2]
[311063957,1704891179263,-2844.34,0.00033972,2]
[311063958,1704891179272,-641.96,0.00033972,2]
[311063959,1704891179282,-1044.01,0.00033972,2]
[311063960,1704891179291,-500.0,0.00033972,2]
[311063961,1704891179302,-388.15366265,0.00033972,2]
[311063962,1704891179312,-1332.76,0.00033972,2]
[311063963,1704891179322,-1244.23,0.00033972,2]
[311063964,1704891179331,-500.0,0.00033972,2]
[311063965,1704891179341,-729.63,0.00033972,2]
[311063966,1704891179351,-757.76,0.00033972,2]
[311063967,1704891179361,-500.0,0.00033972,2]
[311063968,1704891179371,-500.0,0.00033972,2]
[311063969,1704891179383,-500.0,0.00033972,2]
[311063970,1704891179393,-1127.84,0.00033972,2]
[311063971,1704891179404,-1154.12,0.00033972,2]
[311063972,1704891179414,-1044.13,0.00033972,2]
[311063973,1704891179424,-500.0,0.00033972,2]
[311063974,1704891179434,-551.43,0.00033972,2]
[311063975,1704891179445,-1354.13,0.00033972,2]
[311063976,1704891179458,-181.55061708,0.00033972,2]
[311063977,1704891179468,-638.51,0.00033972,2]
[311063978,1704891179478,-862.28,0.00033972,2]
[311063979,1704891179488,-1181.63,0.00033972,2]
[311063980,1704891179498,-757.94,0.00033972,2]
[311063981,1704891179508,-1015.59,0.00033972,2]
[311063982,1704891179518,-823.4,0.00033972,2]
[311063983,1704891179528,-848.07,0.00033972,2]
[311063984,1704891179538,-783.14,0.00033972,2]
[311063985,1704891179547,-500.0,0.00033972,2]
[311063986,1704891179557,-1634.17,0.00033972,2]
[311063987,1704891179567,-892.34,0.00033972,2]
[311063988,1704891179577,-251.1756422,0.00033972,2]
[311063989,1704891179586,-500.0,0.00033972,2]
[311063990,1704891179596,-1731.94,0.00033972,2]
[311063991,1704891179607,-1300.74,0.00033972,2]
[311063992,1704891179616,-1118.35,0.00033972,2]
[311063993,1704891179625,-821.71,0.00033972,2]
[311063994,1704891179635,-1097.53,0.00033972,2]
[311063995,1704891179644,-1115.5,0.00033972,2]
[311063996,1704891179654,-561.02394969,0.00033972,2]
[311063997,1704891179664,-799.47,0.00033972,2]
[311063998,1704891179674,-500.0,0.00033972,2]
[311063999,1704891179683,-483.76504713,0.00033972,2]
[311064000,1704891179692,-1438.57,0.00033972,2]
[311064001,1704891179704,-1466.84,0.00033972,2]
[311064002,1704891179713,-652.51,0.00033972,2]
[311064003,1704891179722,-500.0,0.00033972,2]
[311064004,1704891179732,-1106.08,0.00033972,2]
[311064005,1704891179741,-1166.35,0.00033972,2]
[311064006,1704891179750,-1804.0,0.00033972,2]
[311064007,1704891179759,-1134.06,0.00033972,2]
[311064008,1704891179769,-1196.42,0.00033972,2]
[311064009,1704891179778,-545.73,0.00033972,2]
[311064010,1704891179788,-848.12,0.00033972,2]
[311064011,1704891179798,-1566.38,0.00033972,2]
[311064012,1704891179807,-714.75,0.00033972,2]
[311064013,1704891179818,-907.54,0.00033972,2]
[311064014,1704891179828,-556.57,0.00033972,2]
[311064015,1704891179838,-924.42,0.00033972,2]
[311064016,1704891179847,-500.0,0.00033972,2]
[311064017,1704891179858,-2743.08,0.00033972,2]
[311064018,1704891179867,-500.0,0.00033972,2]
[311064019,1704891179876,-500.0,0.00033972,2]
[311064020,1704891179886,-500.0,0.00033972,2]
[311064021,1704891179896,-1841.24,0.00033972,2]
[311064022,1704891179906,-1407.91,0.00033972,2]
[311064023,1704891179916,-627.59,0.00033972,2]
[311064024,1704891179926,-1648.35,0.00033972,2]
[311064025,1704891179936,-546.87,0.00033972,2]
[311064026,1704891179945,-574.07,0.00033972,2]
[311064027,1704891179956,-1615.48,0.00033972,2]
[311064028,1704891179966,-997.75,0.00033972,2]
[311064029,1704891179976,-555.68,0.00033972,2]
[311064030,1704891179985,-783.23,0.00033972,2]
[311064031,1704891179995,-1436.16,0.00033972,2]
[311064032,1704891180005,-1687.92,0.00033972,2]
[311064033,1704891180017,-388.73014758,0.00033972,2]
[311064034,1704891180026,-893.83,0.00033972,2]
[311064035,1704891180036,-608.29,0.00033972,2]
[311064036,1704891180048,-1132.03,0.00033972,2]
[311064037,1704891180058,-1380.57,0.00033972,2]
[311064038,1704891180069,-933.87,0.00033972,2]
[311064039,1704891180080,-500.0,0.00033972,2]
[311064040,1704891180090,-995.9,0.00033972,2]
[311064041,1704891180101,-957.42,0.00033972,2]
[311064042,1704891180110,-500.0,0.00033972,2]
[311064043,1704891180120,-895.94,0.00033972,2]
[311064044,1704891180130,-1856.22,0.00033972,2]
[311064045,1704891180141,-1480.74,0.00033972,2]
[311064046,1704891180151,-500.0,0.00033972,2]
[311064047,1704891180161,-776.38,0.00033972,2]
[311064048,1704891180171,-1298.12,0.00033972,2]
[311064049,1704891180181,-333.27,0.00033972,2]
[311064050,1704891180190,-1188.98,0.00033972,2]
[311064051,1704891180200,-791.87,0.00033972,2]
[311064052,1704891180211,-700.71,0.00033972,2]
[311064053,1704891180221,-577.69,0.00033972,2]
[311064054,1704891180232,-682.9,0.00033972,2]
[311064055,1704891180242,-923.76,0.00033972,2]
[311064056,1704891180252,-1290.28,0.00033972,2]
[311064057,1704891180262,-672.12,0.00033972,2]
[311064058,1704891180272,-694.02,0.00033972,2]
[311064059,1704891180282,-751.24,0.00033972,2]
[311064060,1704891180291,-1037.2,0.00033972,2]
[311064061,1704891180301,-791.74,0.00033972,2]
[311064062,1704891180311,-2135.41,0.00033972,2]
[311064063,1704891180321,-630.74,0.00033972,2]
[311064064,1704891180331,-500.0,0.00033972,2]
[311064065,1704891180341,-500.0,0.00033972,2]
[311064066,1704891180356,-1065.89,0.00033972,2]
[311064067,1704891180366,-1611.31,0.00033972,2]
[311064068,1704891180376,-500.0,0.00033972,2]
[311064069,1704891180387,-537.76,0.00033972,2]
[311064070,1704891180397,-500.0,0.00033972,2]
[311064071,1704891180406,-1096.88,0.00033972,2]
[311064072,1704891180416,-1235.12,0.00033972,2]
[311064073,1704891180427,-508.12,0.00033972,2]
[311064074,1704891180438,-1351.54,0.00033972,2]
[311064075,1704891180451,-1332.96,0.00033972,2]
[311064076,1704891180461,-433.50357352,0.00033972,2]
[311064077,1704891180471,-525.51,0.00033972,2]
[311064078,1704891180481,-500.0,0.00033972,2]
[311064079,1704891180491,-500.0,0.00033972,2]
[311064080,1704891180501,-500.0,0.00033972,2]
[311064081,1704891180510,-500.0,0.00033972,2]
[311064082,1704891180520,-2153.22,0.00033972,2]
[311064083,1704891180530,-894.32,0.00033972,2]
[311064084,1704891180539,-1551.48,0.00033972,2]
[311064085,1704891180548,-551.86,0.00033972,2]
[311064086,1704891180559,-1823.35,0.00033972,2]
[311064087,1704891180569,-656.22,0.00033972,2]
[311064088,1704891180578,-903.93,0.00033972,2]
[311064089,1704891180588,-784.54,0.00033972,2]
[311064090,1704891180598,-1466.91,0.00033972,2]
[311064091,1704891180610,-1006.56,0.00033972,2]
[311064092,1704891180621,-1655.17,0.00033972,2]
[311064093,1704891180631,-3133.81,0.00033972,2]
[311064094,1704891180642,-761.32,0.00033972,2]
[311064095,1704891180652,-500.0,0.00033972,2]
[311064096,1704891180663,-1170.77,0.00033972,2]
[311064097,1704891180674,-533.08,0.00033972,2]
[311064098,1704891180685,-500.0,0.00033972,2]
[311064099,1704891180695,-1368.59,0.00033972,2]
[311064100,1704891180707,-661.49,0.00033972,2]
[311064101,1704891180717,-1618.49,0.00033972,2]
[311064102,1704891180726,-696.22,0.00033972,2]
[311064103,1704891180735,-500.0,0.00033972,2]
[311064104,1704891180745,-8919.11,0.00033972,2]
[311064105,1704891180756,-813.18,0.00033972,2]
[311064106,1704891180766,-291.26502196,0.00033972,2]
[311064107,1704891180776,-484.51,0.00033972,2]
[311064108,1704891180785,-916.52,0.00033972,2]
[311064109,1704891180796,-1010.96,0.00033972,2]
[311064110,1704891180806,-500.0,0.00033972,2]
[311064111,1704891180815,-669.44,0.00033972,2]
[311064112,1704891180825,-895.64,0.00033972,2]
[311064113,1704891180836,-5719.09,0.00033972,2]
[311064114,1704891180846,-500.0,0.00033972,2]
[311064115,1704891180856,-3241.68,0.00033972,2]
[311064116,1704891180866,-1654.81,0.00033972,2]
[311064117,1704891180876,-2147.06,0.00033972,2]
[311064118,1704891180886,-500.0,0.00033972,2]
[311064119,1704891180895,-4583.07,0.00033972,2]
[311064120,1704891180904,-500.0,0.00033972,2]
[311064121,1704891180915,-4104.47,0.00033972,2]
[311064122,1704891180925,-1135.8,0.00033972,2]
[311064123,1704891180936,-4864.49,0.00033972,2]
[311064124,1704891180945,-1172.6,0.00033972,2]
[311064125,1704891180959,-1306.53,0.00033972,2]
[311064126,1704891180969,-605.42,0.00033972,2]
[311064127,1704891180979,-613.66,0.00033972,2]
[311064128,1704891180989,-3152.91,0.00033972,2]
[311064129,1704891180999,-1839.88,0.00033972,2]
[311064130,1704891181008,-848.46,0.00033972,2]
[311064131,1704891181018,-1217.95,0.00033972,2]
[311064132,1704891181028,-3087.19,0.00033972,2]
[311064133,1704891181039,-1243.05,0.00033972,2]
[311064134,1704891181048,-1107.32,0.00033972,2]
[311064135,1704891181057,-1973.9,0.00033972,2]
[311064136,1704891181066,-500.0,0.00033972,2]
[311064137,1704891181077,-500.0,0.00033972,2]
[311064138,1704891181088,-998.38,0.00033972,2]
[311064139,1704891181098,-1702.03,0.00033972,2]
[311064140,1704891181109,-515.72,0.00033972,2]
[311064141,1704891181118,-500.0,0.00033972,2]
[311064142,1704891181129,-3061.74,0.00033972,2]
[311064143,1704891181138,-500.0,0.00033972,2]
[311064144,1704891181148,-3064.76,0.00033972,2]
[311064145,1704891181158,-996.01,0.00033972,2]
[311064146,1704891181168,-1068.18,0.00033972,2]
[311064147,1704891181179,-1153.97,0.00033972,2]
[311064148,1704891181189,-6469.31,0.00033972,2]
[311064149,1704891181199,-500.0,0.00033972,2]
[311064150,1704891181212,-20572.41,0.00033972,2]
[311064151,1704891181222,-508.77,0.00033972,2]
[311064152,1704891181232,-1211.96,0.00033972,2]
[311064153,1704891181244,-876.85,0.00033972,2]
[311064154,1704891181254,-8935.6,0.00033972,2]
[311064155,1704891181265,-749.11,0.00033972,2]
[311064156,1704891181275,-1516.45,0.00033972,2]
[311064157,1704891181285,-500.0,0.00033972,2]
[311064158,1704891181295,-835.36,0.00033972,2]
[311064159,1704891181304,-542.53837186,0.00033972,2]
[311064160,1704891181314,-500.0,0.00033972,2]
[311064161,1704891181323,-3428.01,0.00033972,2]
[311064162,1704891181335,-51777.21,0.00033972,2]
[311064163,1704891181345,-1411.74,0.00033972,2]
[311064164,1704891181355,-2414.62,0.00033972,2]
[311064165,1704891181365,-500.0,0.00033972,2]
[311064166,1704891181376,-28702.52,0.00033972,2]
[311064167,1704891181385,-1449.33,0.00033972,2]
[311064168,1704891181395,-1741.33,0.00033972,2]
[311064169,1704891181405,-729.81,0.00033972,2]
[311064170,1704891181414,-500.0,0.00033972,2]
[311064171,1704891181424,-982.47,0.00033972,2]
[311064172,1704891181435,-18242.51,0.00033972,2]
[311064173,1704891181445,-1198.42,0.00033972,2]
[311064174,1704891181461,-3044.12,0.00033972,2]
[311064175,1704891181472,-7322.32,0.00033972,2]
[311064176,1704891181482,-669.65,0.00033972,2]
[311064177,1704891181492,-883.98,0.00033972,2]
[311064178,1704891181501,-936.43,0.00033972,2]
[311064179,1704891181512,-500.0,0.00033972,2]
[311064180,1704891181522,-1931.34,0.00033972,2]
[311064181,1704891181532,-596.34,0.00033972,2]
[311064182,1704891181542,-5311.52,0.00033972,2]
[311064183,1704891181551,-591.04,0.00033972,2]
[311064184,1704891181561,-1716.44,0.00033972,2]
[311064185,1704891181571,-756.46,0.00033972,2]
[311064186,1704891181580,-1935.34,0.00033972,2]
[311064187,1704891181590,-630.3,0.00033972,2]
[311064188,1704891181599,-11436.48,0.00033972,2]
[311064189,1704891181609,-896.69,0.00033972,2]
[311064190,1704891181619,-1335.68,0.00033972,2]
[311064191,1704891181629,-5273.56,0.00033972,2]
[311064192,1704891181640,-7205.25,0.00033972,2]
[311064193,1704891181650,-738.84,0.00033972,2]
[311064194,1704891181661,-647.8516158,0.00033972,2]
[311064195,1704891181671,-1192.7,0.00033972,2]
[311064196,1704891181682,-962.89,0.00033972,2]
[311064197,1704891181692,-717.02,0.00033972,2]
[311064198,1704891181705,-1285.43,0.00033972,2]
[311064199,1704891181715,-6876.74,0.00033972,2]
[311064200,1704891181725,-1732.97,0.00033972,2]
[311064201,1704891181735,-2245.33,0.00033972,2]
[311064202,1704891181746,-1567.49,0.00033972,2]
[311064203,1704891181757,-446.57722894,0.00033972,2]
[311064204,1704891181767,-790.0,0.00033972,2]
[311064205,1704891181777,-2499.19,0.00033972,2]
[311064206,1704891181787,-932.57,0.00033972,2]
[311064207,1704891181797,-2921.42,0.00033972,2]
[311064208,1704891181807,-6606.78,0.00033972,2]
[311064209,1704891181817,-783.63,0.00033972,2]
[311064210,1704891181827,-500.0,0.00033972,2]
[311064211,1704891181836,-4128.32,0.00033972,2]
[311064212,1704891181846,-7057.36,0.00033972,2]
[311064213,1704891181856,-682.44,0.00033972,2]
[311064214,1704891181865,-1293.22,0.00033972,2]
[311064215,1704891181874,-3328.34,0.00033972,2]
[311064216,1704891181885,-1047.14,0.00033972,2]
[311064217,1704891181897,-953.47,0.00033972,2]
[311064218,1704891181907,-1333.7,0.00033972,2]
[311064219,1704891181918,-2896.37,0.00033972,2]
[311064220,1704891181928,-668.72,0.00033972,2]
[311064221,1704891181939,-3025.67,0.00033972,2]
[311064222,1704891181953,-1350.56,0.00033972,2]
[311064223,1704891181964,-500.0,0.00033972,2]
[311064224,1704891181975,-2341.12,0.00033972,2]
[311064225,1704891181985,-2098.62,0.00033972,2]
[311064226,1704891181995,-703.2,0.00033972,2]
[311064227,1704891182005,-1930.74,0.00033972,2]
[311064228,1704891182015,-500.0,0.00033972,2]
[311064229,1704891182025,-5339.67,0.00033972,2]
[311064230,1704891182035,-500.0,0.00033972,2]
[311064231,1704891182046,-503.67,0.00033972,2]
[311064232,1704891182056,-4486.53,0.00033972,2]
[311064233,1704891182066,-2153.92,0.00033972,2]
[311064234,1704891182075,-1093.38,0.00033972,2]
[311064235,1704891182085,-3990.83,0.00033972,2]
[311064236,1704891182095,-843.02,0.00033972,2]
[311064237,1704891182105,-3222.77,0.00033972,2]
[311064238,1704891182115,-915.67,0.00033972,2]
[311064239,1704891182125,-500.0,0.00033972,2]
[311064240,1704891182135,-6104.89,0.00033972,2]
[311064241,1704891182145,-723.37,0.00033972,2]
[311064242,1704891182155,-1149.9,0.00033972,2]
[311064243,1704891182164,-5798.03,0.00033972,2]
[311064244,1704891182175,-4625.49,0.00033972,2]
[311064245,1704891182185,-550.5,0.00033972,2]
[311064246,1704891182196,-13391.47,0.00033972,2]
[311064247,1704891182209,-1882.58,0.00033972,2]
[311064248,1704891182219,-1438.47,0.00033972,2]
[311064249,1704891182229,-3391.89,0.00033972,2]
[311064250,1704891182239,-17056.02,0.00033972,2]
[311064251,1704891182249,-1223.46,0.00033972,2]
[311064252,1704891182258,-1903.64,0.00033972,2]
[311064253,1704891182268,-535.17,0.00033972,2]
[311064254,1704891182277,-1447.74,0.00033972,2]
[311064255,1704891182287,-500.0,0.00033972,2]
[311064256,1704891182297,-903.74,0.00033972,2]
[311064257,1704891182307,-1181.32,0.00033972,2]
[311064258,1704891182317,-897.9,0.00033972,2]
[311064259,1704891182327,-3416.68,0.00033972,2]
[311064260,1704891182337,-194.22528701,0.00033972,2]
[311064261,1704891182347,-1323.99,0.00033972,2]
[311064262,1704891182361,-2765.04,0.00033972,2]
[311064263,1704891182371,-605.66,0.00033972,2]
[311064264,1704891182382,-1240.59,0.00033972,2]
[311064265,1704891182392,-1066.0,0.00033972,2]
[311064266,1704891182402,-3383.46,0.00033972,2]
[311064267,1704891182412,-1858.38,0.00033972,2]
[311064268,1704891182421,-556.19,0.00033972,2]
[311064269,1704891182432,-656.06,0.00033972,2]
[311064270,1704891182443,-1414.02,0.00033972,2]
[311064271,1704891182457,-1721.84,0.00033972,2]
[311064272,1704891182467,-506.73,0.00033972,2]
[311064273,1704891182478,-6948.27,0.00033972,2]
[311064274,1704891182490,-500.0,0.00033972,2]
[311064275,1704891182501,-787.87,0.00033972,2]
[311064276,1704891182511,-1113.97,0.00033972,2]
[311064277,1704891182522,-1850.44,0.00033972,2]
[311064278,1704891182533,-875.41,0.00033972,2]
[311064279,1704891182543,-13325.5,0.00033972,2]
[311064280,1704891182553,-622.97,0.00033972,2]
[311064281,1704891182563,-975.55,0.00033972,2]
[311064282,1704891182574,-2699.57,0.00033972,2]
[311064283,1704891182585,-816.51,0.00033972,2]
[311064284,1704891182596,-905.55,0.00033972,2]
[311064285,1704891182607,-602.85,0.00033972,2]
[311064286,1704891182617,-1571.82,0.00033972,2]
[311064287,1704891182628,-1902.92,0.00033972,2]
[311064288,1704891182639,-1172.85,0.00033972,2]